[Event "129th New Zealand Championship 2022"]
[Site "Christchurch"]
[Date "2022.01.03"]
[Round "2.5"]
[White "Cummings, Nick"]
[Black "Xie, Felix"]
[Result "0-1"]
[ECO "B13"]
[WhiteElo "2032"]
[BlackElo "2166"]
[Annotator "NA"]
[PlyCount "102"]
[EventDate "2022.01.02"]
[EventType "swiss"]
[EventCountry "NZL"]
[SourceTitle "playchess.com"]
[Source "ChessBase"]
[SourceQuality "1"]
[TimeControl "40/5400+30:1800+30"]

1. e4 {[%emt 0:00:03]} c6 {[%emt 0:00:06]} 2. d4 {[%emt 0:00:08]} d5 {[%emt 0:00:07]} 3. exd5 {[%emt 0:00:09]} cxd5 {[%emt 0:00:23]} 4. Bd3 {[%emt 0:00:14]} Nc6 {[%emt 0:00:10]} 5. c3 {[%emt 0:00:02]} Qc7 {[%emt 0:00:06]} 6. Ne2 {[%emt 0:00:19]} Bg4 {[%emt 0:00:24]} 7. O-O {[%emt 0:00:40]} e6 {[%emt 0:00:37]} 8. Qe1 {[%emt 0:00:14]} Be7 {[%emt 0:00:15]} 9. Bf4 {[%emt 0:07:20]} Qb6 {[%emt 0:00:15]} 10. Qc1 {[%emt 0:09:48]} Rc8 {[%emt 0:08:42]} 11. f3 {[%emt 0:02:14]} Nb4 12. cxb4 {[%emt 0:13:25]} Rxc1 {[%emt 0:06:39]} 13. Rxc1 {[%emt 0:00:03]} Bf5 {[%emt 0:00:46]} 14. Bxf5 {[%emt 0:00:15]} exf5 {[%emt 0:00:05]} 15. Nbc3 {[%emt 0:03:50]} Nf6 {[%emt 0:03:29]} 16. Na4 {[%emt 0:06:26]} Qxb4 {[%emt 0:00:28]} 17. Rc8+ {[%emt 0:00:41]} Bd8 {[%emt 0:00:18]} 18. b3 {[%emt 0:04:30]} O-O {[%emt 0:01:27]} 19. Nac3 {[%emt 0:05:40]} Qe7 {[%emt 0:12:32]} 20. Rc1 {[%emt 0:05:04]} Nh5 {[%emt 0:11:27]} 21. Bd2 {[%emt 0:00:53]} Qe6 {[%emt 0:04:56]} 22. Ra8 {[%emt 0:01:13]} Qa6 {[%emt 0:01:37]} 23. Re1 {[%emt 0:06:17]} Qc6 {[%emt 0:13:02]} 24. Rxa7 {[%emt 0:03:40]} Bb6 {[%emt 0:00:50]} 25. Ra4 {[%emt 0:00:56]} Re8 {[%emt 0:00:50]} 26. Kf2 {[%emt 0:02:03]} Bc7 {[%emt 0:01:01]} 27. g3 {[%emt 0:06:11]} h6 {[%emt 0:09:16]} 28. b4 {[%emt 0:02:57]} g5 {[%emt 0:04:36]} 29. b5 {[%emt 0:01:49]} Qd6 {[%emt 0:00:14]} 30. Ra7 {[%emt 0:02:20]} Rb8 {[%emt 0:02:09]} 31. Kg2 {[%emt 0:01:28]} Ng7 {[%emt 0:00:33]} 32. Ra4 {[%emt 0:01:23]} Ne6 {[%emt 0:00:23]} 33. Rb1 {[%emt 0:02:15]} Bb6 {[%emt 0:01:26]} 34. Be3 {[%emt 0:02:59]} Rc8 {[%emt 0:01:42]} 35. Bf2 {[%emt 0:02:10]} f4 {[%emt 0:02:26]} 36. Rab4 {[%emt 0:02:39]} Ng7 {[%emt 0:00:44]} 37. gxf4 {[%emt 0:02:13]} gxf4 {[%emt 0:00:33]} 38. Kh1 {[%emt 0:01:11]} Nf5 {[%emt 0:00:44]} 39. Rg1+ {[%emt 0:01:09]} Kh7 {[%emt 0:00:06]} 40. Rb3 {[%emt 0:00:00]} Rc4 {[%emt 0:00:00]} 41. Rd1 {[%emt 0:07:33]} Bc7 {[%emt 0:05:54]} 42. b6 {[%emt 0:06:44]} Bxb6 {[%emt 0:02:33]} 43. Rb5 {[%emt 0:01:05]} Qc6 {[%emt 0:04:26]} 44. Rxb6 {[%emt 0:07:49]} Qxb6 {[%emt 0:00:22]} 45. Nxd5 {[%emt 0:00:23]} Qb2 {[%emt 0:00:17]} 46. Ndxf4 {[%emt 0:01:14]} Rc2 {[%emt 0:00:38]} 47. Re1 {[%emt 0:00:37]} Qxa2 {[%emt 0:00:28]} 48. d5 {[%emt 0:00:39]} b5 {[%emt 0:00:23]} 49. d6 {[%emt 0:03:14]} Nxd6 {[%emt 0:00:49]} 50. Rg1 {[%emt 0:00:54]} Rxe2 {[%emt 0:00:15]} 51. Nh5 {[%emt 0:00:44]} Ne8 {[%emt 0:00:13]} 0-1

[Event "129th New Zealand Championship 2022"]
[Site "Christchurch"]
[Date "2022.01.03"]
[Round "2.6"]
[White "Croad, Nicolas"]
[Black "Van Der Hoorn, Thomas"]
[Result "1-0"]
[ECO "E32"]
[WhiteElo "2289"]
[BlackElo "1685"]
[Annotator "ChessBase"]
[PlyCount "53"]
[EventDate "2022.01.02"]
[EventType "swiss"]
[EventCountry "NZL"]
[SourceTitle "playchess.com"]
[Source "ChessBase"]
[SourceQuality "1"]
[TimeControl "40/5400+30:1800+30"]

1. d4 {[%emt 0:00:03]} Nf6 {[%emt 0:00:07]} 2. c4 {[%emt 0:00:06]} e6 {[%emt 0:00:03]} 3. Nc3 {[%emt 0:00:06]} Bb4 {[%emt 0:00:11]} 4. Qc2 {[%emt 0:00:07]} O-O {[%emt 0:00:06]} 5. a3 {[%emt 0:00:12]} Bxc3+ {[%emt 0:00:05]} 6. Qxc3 {[%emt 0:00:05]} b6 {[%emt 0:00:21]} 7. Bg5 {[%emt 0:00:19]} h6 {[%emt 0:00:31]} 8. Bh4 {[%emt 0:00:07]} Bb7 {[%emt 0:00:05]} 9. f3 {[%emt 0:00:21]} d5 {[%emt 0:00:10]} 10. cxd5 {[%emt 0:02:20]} exd5 {[%emt 0:00:26]} 11. e3 {[%emt 0:01:19]} Nbd7 {[%emt 0:01:25]} 12. Bd3 {[%emt 0:00:46]} Re8 {[%emt 0:01:25]} 13. Ne2 {[%emt 0:00:34]} c5 {[%emt 0:01:05]} 14. O-O {[%emt 0:15:30]} Qe7 {[%emt 0:03:01]} 15. Bf2 {[%emt 0:00:45]} Rac8 {[%emt 0:03:29]} 16. Qd2 {[%emt 0:06:27]} cxd4 {[%emt 0:09:27]} 17. exd4 {[%emt 0:01:11]} a6 {[%emt 0:03:14]} 18. Ng3 {[%emt 0:04:23]} b5 {[%emt 0:10:19]} 19. Nf5 {[%emt 0:13:53]} Qf8 {[%emt 0:00:18]} 20. g4 {[%emt 0:00:28]} Nb6 {[%emt 0:09:46]} 21. Bh4 {[%emt 0:13:25]} Nh7 {[%emt 0:12:14]} 22. Rae1 {[%emt 0:01:26]} g5 {[%emt 0:07:37]} 23. Bg3 {[%emt 0:01:31]} Re6 {[%emt 0:00:46]} 24. Rxe6 {[%emt 0:01:36]} fxe6 {[%emt 0:00:06]} 25. Bd6 {[%emt 0:00:36]} Qf6 {[%emt 0:02:17]} 26. Ne7+ {[%emt 0:01:51]} Kf7 {[%emt 0:00:18]} 27. Bg6+ {[%emt 0:01:09]} 1-0

[Event "129th New Zealand Championship 2022"]
[Site "Christchurch"]
[Date "2022.01.03"]
[Round "2.7"]
[White "Winter, Ryan"]
[Black "Milligan, Helen"]
[Result "0-1"]
[ECO "C90"]
[WhiteElo "2006"]
[BlackElo "1956"]
[Annotator "NA"]
[PlyCount "118"]
[EventDate "2022.01.02"]
[EventType "swiss"]
[EventCountry "NZL"]
[SourceTitle "playchess.com"]
[Source "ChessBase"]
[SourceQuality "1"]
[TimeControl "40/5400+30:1800+30"]

1. e4 {[%emt 0:00:03]} e5 {[%emt 0:00:05]} 2. Nf3 {[%emt 0:00:09]} Nc6 {[%emt 0:00:05]} 3. Bb5 {[%emt 0:00:44]} a6 {[%emt 0:00:06]} 4. Ba4 {[%emt 0:00:07]} Nf6 {[%emt 0:00:09]} 5. O-O {[%emt 0:00:29]} Be7 {[%emt 0:00:32]} 6. Re1 {[%emt 0:00:17]} b5 {[%emt 0:00:17]} 7. Bb3 {[%emt 0:00:05]} d6 {[%emt 0:00:13]} 8. c3 {[%emt 0:00:26]} O-O {[%emt 0:00:46]} 9. a3 {[%emt 0:01:34]} Na5 {[%emt 0:07:14]} 10. Ba2 {[%emt 0:00:31]} Be6 {[%emt 0:04:56]} 11. Bxe6 {[%emt 0:04:09]} fxe6 {[%emt 0:00:05]} 12. d4 {[%emt 0:05:48]} exd4 {[%emt 0:04:00]} 13. cxd4 {[%emt 0:01:50]} c5 {[%emt 0:05:53]} 14. Nc3 {[%emt 0:18:29]} Nd7 {[%emt 0:13:02]} 15. Ne2 {[%emt 0:09:29]} Qe8 {[%emt 0:06:17]} 16. dxc5 {[%emt 0:27:52]} dxc5 {[%emt 0:01:57]} 17. Nf4 {[%emt 0:00:43]} Bd8 {[%emt 0:03:59]} 18. b4 {[%emt 0:10:58]} Nc4 {[%emt 0:02:46]} 19. bxc5 {[%emt 0:10:01]} Nxc5 {[%emt 0:00:56]} 20. Nd3 {[%emt 0:01:19]} Nxd3 {[%emt 0:01:23]} 21. Qxd3 {[%emt 0:00:03]} Bb6 {[%emt 0:01:08]} 22. Bg5 {[%emt 0:01:20]} Ra7 {[%emt 0:05:48]} 23. Qb3 {[%emt 0:01:22]} Qg6 {[%emt 0:04:23]} 24. Bh4 {[%emt 0:01:36]} Raf7 {[%emt 0:01:59]} 25. Bg3 {[%emt 0:01:20]} Qg4 {[%emt 0:04:24]} 26. Qc2 {[%emt 0:01:19]} h5 {[%emt 0:04:52]} 27. Qe2 {[%emt 0:01:09]} g5 {[%emt 0:06:51]} 28. Kh1 {[%emt 0:00:41]} h4 {[%emt 0:02:19]} 29. h3 {[%emt 0:00:20]} Qh5 {[%emt 0:00:38]} 30. Bh2 {[%emt 0:00:30]} g4 {[%emt 0:02:15]} 31. hxg4 {[%emt 0:00:33]} Qxg4 {[%emt 0:00:37]} 32. Ne5 {[%emt 0:00:30]} Nxe5 {[%emt 0:03:07]} 33. Bxe5 {[%emt 0:00:09]} Qxe2 {[%emt 0:02:10]} 34. Rxe2 {[%emt 0:00:02]} Rxf2 {[%emt 0:02:51]} 35. Rxf2 {[%emt 0:01:11]} Bxf2 {[%emt 0:02:18]} 36. Rc1 {[%emt 0:00:38]} Bg3 {[%emt 0:01:22]} 37. Bd4 {[%emt 0:00:42]} Rd8 {[%emt 0:01:17]} 38. Bf6 {[%emt 0:00:29]} Rd3 {[%emt 0:01:00]} 39. Be7 {[%emt 0:00:10]} Kf7 {[%emt 0:00:51]} 40. Bb4 {[%emt 0:00:00]} Rd4 {[%emt 0:00:00]} 41. e5 {[%emt 0:03:08]} Bxe5 {[%emt 0:07:22]} 42. Bc3 {[%emt 0:00:51]} Rd5 {[%emt 0:00:44]} 43. Bxe5 {[%emt 0:00:30]} Rxe5 {[%emt 0:00:06]} 44. Rc7+ {[%emt 0:00:17]} Kg6 {[%emt 0:01:35]} 45. Ra7 {[%emt 0:00:40]} Kg5 {[%emt 0:01:55]} 46. Rxa6 {[%emt 0:01:21]} Kf4 {[%emt 0:01:03]} 47. Kh2 {[%emt 0:00:37]} Ke3 {[%emt 0:01:14]} 48. a4 {[%emt 0:03:49]} bxa4 {[%emt 0:01:04]} 49. Rxa4 {[%emt 0:00:02]} Re4 {[%emt 0:00:13]} 50. Ra5 {[%emt 0:03:36]} e5 {[%emt 0:00:36]} 51. g3 {[%emt 0:09:36]} Kf2 {[%emt 0:07:43]} 52. Ra2+ {[%emt 0:03:10]} Kf3 {[%emt 0:00:14]} 53. gxh4 {[%emt 0:00:52]} Rxh4+ {[%emt 0:00:30]} 54. Kg1 {[%emt 0:00:05]} e4 {[%emt 0:00:23]} 55. Ra4 {[%emt 0:08:29]} Rh8 {[%emt 0:01:42]} 56. Ra7 {[%emt 0:01:43]} e3 {[%emt 0:00:20]} 57. Ra3 {[%emt 0:00:34]} Rd8 {[%emt 0:01:17]} 58. Ra7 {[%emt 0:00:32]} Rd1+ {[%emt 0:02:34]} 59. Kh2 {[%emt 0:00:04]} e2 {[%emt 0:01:44]} 0-1

[Event "129th New Zealand Championship 2022"]
[Site "Christchurch"]
[Date "2022.01.03"]
[Round "2.8"]
[White "Punsalan, Vyanla M"]
[Black "Wang, Aaron Ziwen"]
[Result "0-1"]
[ECO "B22"]
[WhiteElo "1945"]
[BlackElo "1788"]
[Annotator "NA"]
[PlyCount "112"]
[EventDate "2022.01.02"]
[EventType "swiss"]
[EventCountry "NZL"]
[SourceTitle "playchess.com"]
[Source "ChessBase"]
[SourceQuality "1"]
[TimeControl "40/5400+30:1800+30"]

1. e4 {[%emt 0:00:06]} c5 {[%emt 0:00:06]} 2. c3 {[%emt 0:00:17]} Nf6 {[%emt 0:00:18]} 3. e5 {[%emt 0:00:31]} Nd5 {[%emt 0:00:07]} 4. d4 {[%emt 0:00:26]} cxd4 {[%emt 0:00:58]} 5. Nf3 {[%emt 0:00:36]} Nc6 {[%emt 0:00:41]} 6. cxd4 {[%emt 0:00:57]} d6 {[%emt 0:00:47]} 7. Nc3 {[%emt 0:03:19]} Nxc3 {[%emt 0:03:33]} 8. bxc3 {[%emt 0:00:32]} dxe5 {[%emt 0:02:40]} 9. d5 {[%emt 0:03:17]} e4 {[%emt 0:01:13]} 10. dxc6 {[%emt 0:05:16]} Qxd1+ {[%emt 0:00:11]} 11. Kxd1 {[%emt 0:00:04]} exf3 {[%emt 0:00:24]} 12. Bb5 {[%emt 0:00:22]} b6 {[%emt 0:04:12]} 13. gxf3 {[%emt 0:08:21]} e5 {[%emt 0:02:25]} 14. Re1 {[%emt 0:03:13]} f6 {[%emt 0:02:20]} 15. f4 {[%emt 0:06:02]} Bf5 {[%emt 0:09:57]} 16. fxe5 {[%emt 0:03:23]} O-O-O+ {[%emt 0:00:36]} 17. Ke2 {[%emt 0:15:57]} Re8 {[%emt 0:07:42]} 18. Be3 {[%emt 0:14:11]} Rxe5 {[%emt 0:05:11]} 19. a4 {[%emt 0:01:35]} Bc5 {[%emt 0:01:44]} 20. Kf3 {[%emt 0:02:30]} Bxe3 {[%emt 0:02:20]} 21. Rxe3 {[%emt 0:02:11]} Rhe8 {[%emt 0:03:20]} 22. c4 {[%emt 0:08:27]} Rxe3+ {[%emt 0:02:19]} 23. fxe3 {[%emt 0:00:09]} Be4+ {[%emt 0:00:31]} 24. Ke2 {[%emt 0:02:03]} Kc7 {[%emt 0:00:12]} 25. a5 {[%emt 0:00:30]} Re7 {[%emt 0:07:44]} 26. axb6+ {[%emt 0:02:16]} axb6 {[%emt 0:04:16]} 27. Ra7+ {[%emt 0:05:43]} Kd6 {[%emt 0:00:21]} 28. Rxe7 {[%emt 0:01:12]} Kxe7 {[%emt 0:00:05]} 29. c7 {[%emt 0:01:27]} Bb7 {[%emt 0:00:11]} 30. Bc6 {[%emt 0:00:52]} Bc8 {[%emt 0:00:05]} 31. Kd3 {[%emt 0:01:23]} Kd6 {[%emt 0:00:15]} 32. Be4 {[%emt 0:00:46]} f5 {[%emt 0:00:53]} 33. Bd5 {[%emt 0:01:12]} Kxc7 {[%emt 0:00:27]} 34. Kd4 {[%emt 0:01:10]} Kd6 {[%emt 0:00:11]} 35. Bg8 {[%emt 0:00:27]} h6 {[%emt 0:01:33]} 36. Bf7 {[%emt 0:01:57]} g5 {[%emt 0:03:40]} 37. Bg6 {[%emt 0:01:38]} Bd7 {[%emt 0:00:50]} 38. Bh5 {[%emt 0:01:13]} Bc6 {[%emt 0:00:55]} 39. Bg6 {[%emt 0:00:07]} Be4 {[%emt 0:00:07]} 40. Bh5 {[%emt 0:00:00]} Ke6 {[%emt 0:00:00]} 41. Bd1 {[%emt 0:02:09]} Bb7 {[%emt 0:08:31]} 42. Bh5 {[%emt 0:01:49]} Kf6 {[%emt 0:01:07]} 43. Be8 {[%emt 0:01:55]} g4 {[%emt 0:00:13]} 44. Kc3 {[%emt 0:02:42]} Ke5 {[%emt 0:02:40]} 45. Kb4 {[%emt 0:02:27]} Ke4 {[%emt 0:00:55]} 46. Kb5 {[%emt 0:01:39]} Kxe3 {[%emt 0:00:08]} 47. Kxb6 {[%emt 0:01:15]} Ba8 {[%emt 0:02:12]} 48. Bd7 {[%emt 0:04:35]} Ke4 {[%emt 0:08:10]} 49. c5 {[%emt 0:02:31]} h5 {[%emt 0:01:16]} 50. c6 {[%emt 0:04:29]} Bxc6 {[%emt 0:00:08]} 51. Kxc6 {[%emt 0:00:35]} h4 {[%emt 0:01:45]} 52. Kd6 {[%emt 0:05:58]} g3 {[%emt 0:00:21]} 53. Ke6 {[%emt 0:04:31]} f4 {[%emt 0:00:22]} 54. Bc6+ {[%emt 0:01:27]} Ke3 {[%emt 0:00:07]} 55. Kf5 {[%emt 0:00:43]} f3 {[%emt 0:00:29]} 56. Kg4 {[%emt 0:00:53]} g2 {[%emt 0:00:08]} 0-1

[Event "129th New Zealand Championship 2022"]
[Site "Christchurch"]
[Date "2022.01.03"]
[Round "2.9"]
[White "Ning, Isabelle Yixuan"]
[Black "Tang, Hao"]
[Result "0-1"]
[ECO "A57"]
[WhiteElo "1796"]
[BlackElo "1838"]
[Annotator "NA"]
[PlyCount "90"]
[EventDate "2022.01.02"]
[EventType "swiss"]
[EventCountry "NZL"]
[SourceTitle "playchess.com"]
[Source "ChessBase"]
[SourceQuality "1"]
[TimeControl "40/5400+30:1800+30"]

1. d4 {[%emt 0:00:05]} Nf6 {[%emt 0:00:04]} 2. c4 {[%emt 0:00:06]} c5 {[%emt 0:00:04]} 3. d5 {[%emt 0:00:04]} b5 {[%emt 0:00:03]} 4. Qc2 {[%emt 0:00:04]} bxc4 {[%emt 0:00:06]} 5. e4 {[%emt 0:00:07]} d6 {[%emt 0:00:08]} 6. Bxc4 {[%emt 0:00:06]} g6 {[%emt 0:00:05]} 7. Nf3 {[%emt 0:00:19]} Bg7 {[%emt 0:00:08]} 8. O-O {[%emt 0:00:41]} O-O {[%emt 0:00:04]} 9. h3 {[%emt 0:00:20]} Ba6 {[%emt 0:00:09]} 10. Nbd2 {[%emt 0:11:04]} Qb6 {[%emt 0:02:37]} 11. Bxa6 {[%emt 0:04:09]} Qxa6 {[%emt 0:00:23]} 12. Nc4 {[%emt 0:04:23]} Nbd7 {[%emt 0:00:27]} 13. Bd2 {[%emt 0:05:23]} Rab8 {[%emt 0:05:01]} 14. Na5 {[%emt 0:09:52]} Rb5 {[%emt 0:14:56]} 15. Nc6 {[%emt 0:05:32]} Re8 {[%emt 0:04:58]} 16. Bc3 {[%emt 0:04:51]} Nb8 {[%emt 0:03:56]} 17. Nxb8 {[%emt 0:10:12]} Rexb8 {[%emt 0:00:56]} 18. a3 {[%emt 0:05:07]} Qb7 {[%emt 0:02:35]} 19. b4 {[%emt 0:03:43]} cxb4 {[%emt 0:10:16]} 20. axb4 {[%emt 0:00:22]} Rc8 {[%emt 0:00:45]} 21. Nd4 {[%emt 0:06:25]} Rxb4 {[%emt 0:12:26]} 22. Nc6 {[%emt 0:00:30]} Rxc6 {[%emt 0:00:13]} 23. dxc6 {[%emt 0:00:19]} Qxc6 {[%emt 0:00:07]} 24. Rfc1 {[%emt 0:13:34]} Rc4 {[%emt 0:03:02]} 25. Qb2 {[%emt 0:01:52]} Bh6 {[%emt 0:05:05]} 26. Bd2 {[%emt 0:05:19]} Bxd2 {[%emt 0:01:41]} 27. Qxd2 {[%emt 0:00:10]} Nxe4 {[%emt 0:00:37]} 28. Qh6 {[%emt 0:02:27]} Rxc1+ {[%emt 0:07:23]} 29. Rxc1 {[%emt 0:00:07]} Qb7 {[%emt 0:00:39]} 30. h4 {[%emt 0:01:43]} a5 {[%emt 0:01:48]} 31. h5 {[%emt 0:01:38]} Nf6 {[%emt 0:05:13]} 32. Qg5 {[%emt 0:00:43]} Nxh5 {[%emt 0:00:46]} 33. Qxa5 {[%emt 0:00:16]} Nf4 {[%emt 0:01:39]} 34. Qd8+ {[%emt 0:02:58]} Kg7 {[%emt 0:00:16]} 35. Kf1 {[%emt 0:00:15]} Qb5+ {[%emt 0:00:52]} 36. Kg1 {[%emt 0:00:58]} Ne2+ {[%emt 0:00:14]} 37. Kf1 {[%emt 0:00:33]} Nxc1+ {[%emt 0:00:10]} 38. Kg1 {[%emt 0:00:05]} Ne2+ {[%emt 0:00:16]} 39. Kf1 {[%emt 0:00:18]} Ng3+ {[%emt 0:02:30]} 40. Kg1 {[%emt 0:00:00]} Qf1+ {[%emt 0:00:00]} 41. Kh2 {[%emt 0:00:11]} Qxf2 {[%emt 0:01:38]} 42. Qxe7 {[%emt 0:00:17]} Nf1+ {[%emt 0:01:19]} 43. Kh1 {[%emt 0:00:09]} Ne3 {[%emt 0:00:18]} 44. Qe4 {[%emt 0:00:38]} Qxg2+ {[%emt 0:00:12]} 45. Qxg2 {[%emt 0:00:09]} Nxg2 {[%emt 0:00:04]} 0-1

[Event "129th New Zealand Championship 2022"]
[Site "Christchurch"]
[Date "2022.01.03"]
[Round "2.10"]
[White "Metge, J. Nigel"]
[Black "Ha, Huy Minh (Timothy)"]
[Result "1-0"]
[ECO "D43"]
[WhiteElo "1879"]
[BlackElo "1637"]
[Annotator "NA"]
[PlyCount "49"]
[EventDate "2022.01.02"]
[EventType "swiss"]
[EventCountry "NZL"]
[SourceTitle "playchess.com"]
[Source "ChessBase"]
[SourceQuality "1"]
[TimeControl "40/5400+30:1800+30"]

1. d4 {[%emt 0:00:06]} d5 {[%emt 0:00:13]} 2. c4 {[%emt 0:00:06]} c6 {[%emt 0:00:06]} 3. Nc3 {[%emt 0:00:40]} Nf6 {[%emt 0:00:30]} 4. Nf3 {[%emt 0:00:21]} e6 {[%emt 0:00:26]} 5. Bg5 {[%emt 0:00:05]} h6 {[%emt 0:04:58]} 6. Bh4 {[%emt 0:04:31]} Bd6 {[%emt 0:02:53]} 7. e3 {[%emt 0:08:41]} Nbd7 {[%emt 0:00:41]} 8. Qc2 {[%emt 0:04:27]} O-O {[%emt 0:04:05]} 9. g4 {[%emt 0:05:44]} e5 {[%emt 0:03:18]} 10. g5 {[%emt 0:02:55]} hxg5 {[%emt 0:04:44]} 11. Bxg5 {[%emt 0:00:29]} dxc4 {[%emt 0:02:38]} 12. O-O-O {[%emt 0:01:39]} Qa5 {[%emt 0:01:27]} 13. Rg1 {[%emt 0:07:07]} e4 {[%emt 0:03:10]} 14. Bh6 {[%emt 0:14:56]} g6 {[%emt 0:02:19]} 15. Nxe4 {[%emt 0:02:08]} Nxe4 {[%emt 0:04:52]} 16. Qxe4 {[%emt 0:00:18]} Qh5 {[%emt 0:00:03]} 17. Bxc4 {[%emt 0:02:05]} Kh8 {[%emt 0:03:44]} 18. Bxf8 {[%emt 0:00:40]} Nf6 {[%emt 0:01:13]} 19. Qh4 {[%emt 0:02:24]} Qxh4 {[%emt 0:09:00]} 20. Nxh4 {[%emt 0:00:03]} Bxf8 {[%emt 0:00:03]} 21. Bxf7 {[%emt 0:00:28]} Bg7 {[%emt 0:00:11]} 22. Rxg6 {[%emt 0:02:12]} Bd7 {[%emt 0:09:37]} 23. Rdg1 {[%emt 0:00:25]} Nh5 {[%emt 0:00:10]} 24. R1g5 {[%emt 0:00:44]} Bxd4 {[%emt 0:01:09]} 25. Rxh5# {[%emt 0:00:13]} 1-0

[Event "129th New Zealand Championship 2022"]
[Site "Christchurch"]
[Date "2022.01.03"]
[Round "2.11"]
[White "Gomes, Luiz Alexandre de So"]
[Black "Sole, Michael D"]
[Result "0-1"]
[ECO "E30"]
[WhiteElo "2335"]
[BlackElo "1815"]
[Annotator "ChessBase"]
[PlyCount "74"]
[EventDate "2022.01.02"]
[EventType "swiss"]
[EventCountry "NZL"]
[SourceTitle "playchess.com"]
[Source "ChessBase"]
[SourceQuality "1"]
[TimeControl "40/5400+30:1800+30"]

1. d4 {[%emt 0:00:03]} Nf6 {[%emt 0:00:27]} 2. c4 {[%emt 0:00:19]} e6 {[%emt 0:00:21]} 3. Nc3 {[%emt 0:00:22]} Bb4 {[%emt 0:00:10]} 4. Bg5 {[%emt 0:00:59]} c5 {[%emt 0:00:43]} 5. Bd2 {[%emt 0:07:36]} cxd4 {[%emt 0:05:52]} 6. Nb5 {[%emt 0:00:56]} Bc5 {[%emt 0:04:20]} 7. b4 {[%emt 0:02:24]} Be7 {[%emt 0:00:12]} 8. Nxd4 {[%emt 0:06:50]} a5 {[%emt 0:04:11]} 9. a3 {[%emt 0:15:49]} Qb6 {[%emt 0:06:46]} 10. c5 {[%emt 0:02:49]} Qd8 {[%emt 0:01:28]} 11. Nb5 {[%emt 0:01:25]} O-O {[%emt 0:03:01]} 12. Bf4 {[%emt 0:02:55]} Na6 {[%emt 0:02:57]} 13. g3 {[%emt 0:04:14]} Nd5 {[%emt 0:02:44]} 14. e4 {[%emt 0:05:33]} Nxf4 {[%emt 0:01:35]} 15. gxf4 {[%emt 0:00:05]} b6 {[%emt 0:01:28]} 16. Nd6 {[%emt 0:05:24]} bxc5 {[%emt 0:05:57]} 17. b5 {[%emt 0:07:03]} Nb8 {[%emt 0:01:03]} 18. a4 {[%emt 0:06:27]} Ra7 {[%emt 0:16:26]} 19. Bg2 {[%emt 0:05:51]} Bb7 {[%emt 0:02:31]} 20. Bf3 {[%emt 0:01:32]} Bxd6 {[%emt 0:03:59]} 21. Qxd6 {[%emt 0:00:08]} Qf6 {[%emt 0:00:53]} 22. Qe5 {[%emt 0:02:20]} d6 {[%emt 0:02:11]} 23. Qxf6 {[%emt 0:00:23]} gxf6 {[%emt 0:00:03]} 24. Ne2 {[%emt 0:05:56]} f5 {[%emt 0:02:12]} 25. Nc3 {[%emt 0:00:14]} fxe4 {[%emt 0:01:41]} 26. Bxe4 {[%emt 0:01:25]} f5 {[%emt 0:01:46]} 27. b6 {[%emt 0:01:35]} Bxe4 {[%emt 0:04:52]} 28. Rg1+ {[%emt 0:00:51]} Rg7 {[%emt 0:00:01]} 29. Rxg7+ {[%emt 0:00:29]} Kxg7 {[%emt 0:00:01]} 30. Nxe4 {[%emt 0:01:26]} fxe4 {[%emt 0:00:17]} 31. Kd2 {[%emt 0:00:46]} Nc6 {[%emt 0:01:22]} 32. Kc3 {[%emt 0:00:45]} d5 {[%emt 0:00:24]} 33. Rg1+ {[%emt 0:00:19]} Kf7 {[%emt 0:00:48]} 34. Rg3 {[%emt 0:00:02]} Rb8 {[%emt 0:00:30]} 35. f3 {[%emt 0:00:23]} exf3 {[%emt 0:00:50]} 36. Rxf3 {[%emt 0:00:08]} Rxb6 {[%emt 0:00:21]} 37. f5 {[%emt 0:00:07]} Rb3+ {[%emt 0:24:37]} 0-1

[Event "129th New Zealand Championship 2022"]
[Site "Christchurch"]
[Date "2022.01.05"]
[Round "4.10"]
[White "Ning, Isabelle Yixuan"]
[Black "Wang, Aaron Ziwen"]
[Result "1-0"]
[ECO "E87"]
[WhiteElo "1796"]
[BlackElo "1788"]
[Annotator "NA RC"]
[PlyCount "49"]
[EventDate "2022.01.02"]
[EventType "swiss"]
[EventCountry "NZL"]
[TimeControl "40/5400+30:1800+30"]

1. d4 {[%emt 0:00:05]} Nf6 {[%emt 0:00:04]} 2. c4 {[%emt 0:00:10]} g6 {[%emt 0:00:04]} 3. Nc3 {[%emt 0:00:05]} Bg7 {[%emt 0:00:04]} 4. e4 {[%emt 0:00:05]} d6 {[%emt 0:00:02]} 5. h3 {[%emt 0:00:07]} O-O {[%emt 0:01:14]} 6. Be3 {[%emt 0:00:10]} e5 {[%emt 0:03:01]} 7. d5 {[%emt 0:00:25]} a5 {[%emt 0:02:24]} 8. g4 {[%emt 0:02:37]} Na6 {[%emt 0:01:26]} 9. Nge2 {[%emt 0:01:20]} h5 {[%emt 0:16:26]} 10. f3 {[%emt 0:07:15]} Nc5 {[%emt 0:12:19]} 11. Qd2 {[%emt 0:06:23]} Nh7 {[%emt 0:03:32]} 12. O-O-O {[%emt 0:12:07]} h4 {[%emt 0:12:44]} 13. g5 {[%emt 0:01:47]} f5 {[%emt 0:02:46]} 14. gxf6 {[%emt 0:01:22]} Qxf6 {[%emt 0:00:31]} 15. Rg1 {[%emt 0:05:54]} Qxf3 {[%emt 0:01:17]} 16. Bxc5 {[%emt 0:01:25]} dxc5 {[%emt 0:00:43]} 17. Rxg6 {[%emt 0:02:29]} Rf6 {[%emt 0:03:09]} 18. Qh6 {[%emt 0:08:25]} Rxg6 {[%emt 0:05:29]} 19. Qxg6 {[%emt 0:00:12]} Bxh3 {[%emt 0:00:54]} 20. Bxh3 {[%emt 0:13:56]} Qxh3 {[%emt 0:00:09]} 21. Rg1 {[%emt 0:01:26]} Qd7 {[%emt 0:00:09]} 22. Qh5 {[%emt 0:03:59]} Qd8 {[%emt 0:04:36]} 23. Qxe5 {[%emt 0:03:10]} Nf6 {[%emt 0:15:58]} 24. Nf4 {[%emt 0:01:32]} Kh8 {[%emt 0:06:15]} 25. Rxg7 {[%emt 0:01:27]} 1-0